bitfinex/quotes_SOLUSD_20241022
["timestamp","ask_amount","ask_price","bid_price","bid_amount"]
[1729601012341,6.0167,166.21,166.11,70.0]
[1729601012762,16.0209,166.23,166.13,70.0]
[1729601012965,22.0367,166.23,166.13,70.0]
[1729601013267,16.0209,166.23,166.13,70.0]
[1729601013450,16.1713,166.27,166.15,70.0]
[1729601013657,16.1713,166.27,166.17,76.4216]
[1729601013962,6.0146,166.27,166.17,76.4216]
[1729601015056,15.033,166.3,166.17,76.4216]
[1729601015057,6.0149,166.26,166.17,76.4216]
[1729601015956,6.0142,166.28,166.17,93.82133307]
[1729601016268,20.0,166.29,166.19,70.0]
[1729601016443,6.0144,166.27,166.19,70.0]
[1729601016641,6.0144,166.27,166.17,93.82133307]
[1729601017059,6.0147,166.26,166.17,93.82133307]
[1729601017769,6.0144,166.27,166.17,93.82133307]
[1729601018068,6.0135,166.3,166.19,70.0]
[1729601018246,6.0135,166.3,166.21,70.0]
[1729601018450,6.0137,166.29,166.21,70.0]
[1729601018863,16.3399,166.31,166.21,70.0]
[1729601019065,6.0133,166.3,166.21,70.0]
[1729601019575,6.0129,166.31,166.22,15.9202]
[1729601019867,6.0131,166.31,166.22,15.9202]
[1729601020660,6.0125,166.32,166.22,15.9202]
[1729601020864,6.0145,166.27,166.18,16.0901]
[1729601021042,23.776884,166.32,166.18,16.0901]
[1729601021248,6.0148,166.26,166.18,16.0901]
[1729601021861,35.0321,166.31,166.19,70.0]
[1729601022061,6.0139,166.29,166.19,87.39973307]
[1729601022579,6.0139,166.28,166.19,87.39973307]
[1729601024965,6.0136,166.29,166.19,87.39973307]
[1729601027062,20.0,166.31,166.19,87.39973307]
[1729601027263,6.0147,166.26,166.18,16.0901]
[1729601028891,20.0,166.31,166.18,16.0901]
[1729601029372,6.0146,166.26,166.18,16.0901]
[1729601033583,20.0,166.31,166.18,16.0901]
[1729601033886,16.1575,166.28,166.18,16.0901]
[1729601034183,6.016,166.23,166.14,15.8135]
[1729601034384,6.0166,166.21,166.14,15.8135]
[1729601034582,6.017,166.2,166.14,15.8135]
[1729601035667,6.0172,166.19,166.11,70.0]
[1729601036670,22.3567,166.21,166.11,70.0]
[1729601036980,6.0167,166.21,166.11,70.0]
[1729601037768,6.0157,166.23,166.13,70.0]
[1729601038263,6.0157,166.23,166.1,33.21193307]
[1729601038264,20.0,166.24,166.11,70.0]
[1729601038463,6.0172,166.19,166.11,70.0]
[1729601038767,20.0,166.24,166.11,70.0]
[1729601039076,6.0169,166.2,166.11,70.0]
[1729601039978,6.0163,166.22,166.11,70.0]
[1729601040279,6.0158,166.23,166.13,70.0]
[1729601041294,16.34,166.25,166.13,70.0]
[1729601042490,16.34,166.25,166.11,70.0]
[1729601042694,23.776884,166.24,166.11,70.0]
[1729601042876,6.0171,166.2,166.11,70.0]
[1729601045495,6.0176,166.18,166.1,15.8122]
[1729601045795,15.0395,166.23,166.1,15.8122]
[1729601045796,6.0175,166.19,166.1,15.8122]
[1729601045980,6.0168,166.21,166.11,70.0]
[1729601046174,6.0161,166.22,166.13,70.0]
[1729601046376,6.0157,166.24,166.13,70.0]
[1729601046685,16.34,166.25,166.13,70.0]
[1729601047196,6.0164,166.21,166.13,70.0]
[1729601047785,6.0161,166.22,166.13,70.0]
[1729601048291,16.34,166.25,166.13,70.0]
[1729601048496,16.59943397,166.3,166.19,70.0]
[1729601048684,6.0136,166.29,166.19,70.0]
[1729601048873,16.59943397,166.3,166.16,6.404]
[1729601049300,16.59943397,166.3,166.14,15.7298]
[1729601049491,6.0162,166.22,166.14,15.7298]
[1729601050901,16.59943397,166.3,166.14,15.7298]
[1729601051078,6.0172,166.2,166.12,6.1536]
[1729601051277,21.0551,166.23,166.1,15.2778]
[1729601051506,20.0,166.2,166.1,15.2778]
[1729601051706,15.3234,166.21,166.08,7.0234768]
[1729601051707,6.0184,166.16,166.08,7.0234768]
[1729601051885,6.018,166.17,166.08,7.0234768]
[1729601052698,15.3234,166.21,166.09,70.0]
[1729601052899,20.0,166.2,166.09,70.0]
[1729601053207,20.0,166.2,166.08,7.0234768]
[1729601053208,6.0176,166.18,166.08,7.0234768]
[1729601053502,6.0182,166.17,166.08,7.0234768]
[1729601056496,6.0176,166.18,166.08,77.0234768]
[1729601057090,6.018,166.17,166.08,77.0234768]
[1729601058210,6.0183,166.16,166.08,77.0234768]
[1729601059287,6.0183,166.16,166.08,7.0234768]
[1729601060307,15.043,166.19,166.08,7.0234768]
[1729601060607,6.0182,166.17,166.08,7.0234768]
[1729601061317,6.0182,166.17,166.08,18.16315675]
[1729601061605,15.0439,166.18,166.08,7.0234768]
[1729601061817,6.0186,166.16,166.08,7.0234768]
[1729601062181,6.0193,166.14,166.08,0.6163768]
[1729601062512,6.0208,166.09,166.08,0.6163768]
[1729601062705,6.0205,166.1,166.08,0.6163768]
[1729601063204,6.0208,166.09,166.08,0.6163768]
[1729601064296,23.776884,166.13,166.08,0.6163768]
[1729601064594,38.825984,166.13,166.08,0.6163768]
[1729601064799,6.0202,166.11,166.08,0.6163768]
[1729601065304,6.0205,166.1,166.08,0.6163768]
[1729601065507,6.0202,166.11,166.08,0.6163768]
[1729601065711,6.0201,166.11,166.08,0.6163768]
[1729601066597,6.0207,166.1,166.08,0.6163768]
[1729601068302,6.0208,166.09,166.08,0.6163768]
[1729601068617,6.0205,166.1,166.08,0.6163768]
[1729601068913,26.0199,166.12,166.08,0.6163768]
[1729601069283,6.0193,166.13,166.08,0.6163768]
[1729601069487,0.09993659,166.2,166.08,0.6163768]
[1729601069488,30.1922,166.19,166.08,0.6163768]
[1729601069701,6.0179,166.17,166.08,0.6163768]
[1729601069891,6.0184,166.16,166.08,0.6163768]
[1729601070293,15.1488,166.19,166.08,0.6163768]
[1729601070699,6.0176,166.18,166.08,0.6163768]
[1729601070906,6.0176,166.18,166.09,15.7227]
[1729601071101,21.1661,166.19,166.09,15.7227]
[1729601071997,21.1661,166.19,166.08,0.6163768]
[1729601073609,43.776884,166.18,166.08,0.6163768]
[1729601073991,6.0191,166.14,166.08,0.6163768]
[1729601074187,6.0187,166.15,166.08,0.6163768]
[1729601074408,6.0189,166.15,166.08,0.6163768]
[1729601075490,43.776884,166.18,166.08,0.6163768]
[1729601075703,6.019,166.14,166.08,0.6163768]
[1729601076006,6.0191,166.14,166.08,0.6163768]
[1729601076389,58.821284,166.18,166.08,0.6163768]
[1729601076594,6.0193,166.14,166.08,0.6163768]
[1729601076799,21.0627,166.17,166.08,0.6163768]
[1729601077003,6.0201,166.12,166.08,0.6163768]
[1729601077303,6.0202,166.11,166.08,0.6163768]
[1729601079616,20.0,166.15,166.08,0.6163768]
[1729601079795,6.0192,166.14,166.08,0.6163768]
[1729601080511,20.0,166.15,166.08,0.6163768]
[1729601080710,6.0194,166.13,166.08,0.6163768]
[1729601081415,6.0191,166.14,166.08,0.6163768]
[1729601081620,6.0175,166.18,166.08,0.6163768]
[1729601081827,6.0175,166.18,166.08,15.8755768]
[1729601082508,15.1488,166.19,166.08,0.6163768]
[1729601082693,6.0193,166.14,166.08,0.6163768]
[1729601084418,15.0448,166.17,166.08,0.6163768]
[1729601084608,43.776884,166.15,166.08,0.6163768]
[1729601084805,6.0197,166.13,166.08,0.6163768]
[1729601085902,6.0193,166.14,166.08,0.6163768]
[1729601086110,6.0195,166.13,166.08,0.6163768]
[1729601088302,6.018,166.17,166.08,0.6163768]
[1729601088700,15.1488,166.19,166.08,0.6163768]
[1729601088908,6.0201,166.11,166.08,0.6163768]
[1729601089219,6.0198,166.12,166.08,0.6163768]
[1729601089795,6.0194,166.13,166.08,0.6163768]
[1729601090017,6.0197,166.12,166.08,0.6163768]
[1729601091919,6.0208,166.09,166.08,0.6163768]
[1729601093321,6.0237,166.01,166.0,0.2]
[1729601093925,20.0,166.05,166.0,0.2]
[1729601094137,16.79163659,166.07,166.0,0.2]
[1729601094298,16.79163659,166.07,165.92,6.3234]
[1729601094299,43.776884,166.01,165.91,0.6163768]
[1729601094504,6.0249,165.98,165.91,0.6163768]
[1729601094733,15.1534288,166.06,165.91,0.6163768]
[1729601095026,6.0242,166.0,165.91,0.6163768]
[1729601095231,21.5158,166.06,165.92,15.3589]
[1729601095529,6.023,166.03,165.92,15.3589]
[1729601095728,6.0222,166.05,165.93,90.0]
[1729601095933,6.0226,166.04,165.93,90.0]
[1729601096602,6.0223,166.05,165.93,90.0]
[1729601097205,6.0242,166.0,165.93,20.0]
[1729601097419,6.0234,166.02,165.93,20.0]
[1729601097728,6.024,166.0,165.92,15.3589]
[1729601098038,6.0237,166.02,165.92,15.3589]
[1729601098918,20.0,166.04,165.92,15.3589]
[1729601099230,6.0226,166.04,165.92,85.3589]
[1729601100315,20.0,166.05,165.92,85.3589]
[1729601100801,6.0229,166.04,165.92,85.3589]
[1729601101000,6.023,166.03,165.92,85.3589]
[1729601101454,6.023,166.03,165.91,0.6163768]
[1729601101455,20.1,166.01,165.91,0.6163768]
[1729601101651,6.0266,165.93,165.91,0.6163768]
[1729601103156,6.027,165.92,165.91,0.6163768]
[1729601103330,71.822384,165.92,165.91,0.6163768]
[1729601104245,48.0455,165.92,165.91,0.6163768]
[1729601104549,6.0304,165.83,165.74,0.6163768]
[1729601104856,43.97682059,165.91,165.74,0.6163768]
[1729601105025,6.0301,165.84,165.74,0.6163768]
[1729601105230,20.0,165.81,165.74,0.6163768]
[1729601105530,23.776884,165.78,165.74,0.6163768]
[1729601105731,6.0329,165.76,165.74,0.6163768]
[1729601106258,23.776884,165.75,165.74,0.6163768]
[1729601106426,6.0329,165.76,165.74,0.6163768]
[1729601106748,23.776884,165.81,165.74,0.6163768]
[1729601107048,23.776884,165.79,165.74,0.6163768]
[1729601107245,20.0,165.8,165.74,0.6163768]
[1729601107440,23.776884,165.77,165.74,0.6163768]
[1729601107648,43.776884,165.75,165.74,0.6163768]
[1729601107853,6.0331,165.76,165.74,0.6163768]
[1729601108555,43.776884,165.75,165.74,0.6163768]
[1729601109462,23.776884,165.75,165.74,0.6163768]
[1729601109836,6.0339,165.73,165.7,0.2]
[1729601110138,6.0343,165.72,165.7,0.2]
[1729601110337,20.0,165.74,165.7,0.2]
[1729601111157,23.776884,165.75,165.7,0.2]
[1729601111458,6.0343,165.72,165.7,0.2]
[1729601111655,23.776884,165.75,165.7,0.2]
[1729601112159,20.0,165.74,165.7,0.2]
[1729601112462,0.09993659,165.81,165.7,0.2]
[1729601112755,20.0,165.76,165.7,0.2]
[1729601113133,26.0331,165.76,165.7,0.2]
[1729601113557,6.9329575,165.88,165.7,0.2]
[1729601113764,6.0299,165.84,165.7,20.2]
[1729601113934,21.8649,165.89,165.71,70.0]
[1729601114140,21.8649,165.89,165.72,20.0]
[1729601114337,6.0289,165.87,165.72,20.0]
[1729601114539,21.8649,165.89,165.73,70.0]
[1729601114744,6.0291,165.87,165.73,70.0]
[1729601114944,21.8649,165.89,165.73,70.0]
[1729601115355,6.0288,165.87,165.73,70.0]
[1729601115557,20.0,165.86,165.73,70.0]
[1729601115854,6.46,165.89,165.74,20.0]
[1729601116060,23.1661527,165.92,165.7,0.2]
[1729601116061,23.876884,165.88,165.7,0.2]
[1729601116271,6.0307,165.82,165.7,0.2]
[1729601117369,23.97682059,165.88,165.7,0.2]
[1729601117543,20.0,165.83,165.7,0.2]
[1729601117864,23.776884,165.82,165.7,0.2]
[1729601118042,23.776884,165.8,165.7,0.2]
[1729601118241,23.776884,165.79,165.7,0.2]
[1729601118546,29.808784,165.79,165.7,0.2]
[1729601118748,6.0313,165.81,165.7,0.2]
[1729601118954,20.0,165.8,165.7,0.2]
[1729601119341,29.808584,165.79,165.7,0.2]
[1729601119549,23.776884,165.79,165.7,0.2]
[1729601120656,6.031,165.81,165.7,0.2]
[1729601122175,29.808484,165.8,165.7,0.2]
[1729601122342,6.0318,165.79,165.7,0.2]
[1729601122545,23.776884,165.8,165.7,0.2]
[1729601122745,29.808184,165.8,165.7,0.2]
[1729601123853,23.776884,165.8,165.7,0.2]
[1729601124168,29.808084,165.81,165.7,0.2]
[1729601124753,20.0,165.82,165.7,0.2]
[1729601124954,15.0733,165.86,165.7,0.2]
[1729601125276,6.0307,165.82,165.7,0.2]
[1729601125662,6.0291,165.86,165.7,0.2]
[1729601125845,6.0293,165.86,165.71,70.0]
[1729601126371,6.36245897,165.91,165.73,70.0]
[1729601126568,6.0284,165.89,165.73,98.09143521]
[1729601126754,6.0278,165.9,165.75,70.0]
[1729601126955,6.2103,165.94,165.79,22.6599]
[1729601127157,6.0259,165.95,165.8,70.0]
[1729601127573,6.0248,165.98,165.8,70.0]
[1729601127774,6.0261,165.95,165.8,70.0]
[1729601127952,6.0248,165.98,165.83,70.0]
[1729601128157,6.0249,165.98,165.83,70.0]
[1729601128458,15.1591,166.01,165.86,70.0]
[1729601128459,6.024,166.0,165.86,70.0]
[1729601130049,43.776884,166.03,165.86,70.0]
[1729601130370,29.800984,166.0,165.86,70.0]
[1729601130567,6.0239,166.01,165.86,70.0]
[1729601130756,6.0233,166.03,165.88,70.0]
[1729601130961,6.023,166.03,165.89,76.147]
[1729601131272,6.0223,166.05,165.91,70.0]
[1729601131647,6.0219,166.06,165.91,70.0]
[1729601131853,1.80447522,166.09,165.95,27.99143521]
[1729601132059,6.0203,166.11,165.98,27.99143521]
[1729601132261,6.0197,166.12,165.98,27.99143521]
[1729601132773,0.1,166.13,165.95,27.99143521]
[1729601132970,15.1505,166.11,165.92,27.99143521]
[1729601133276,6.0223,166.05,165.92,27.99143521]
[1729601133576,6.0229,166.04,165.92,27.99143521]
[1729601133759,6.0226,166.04,165.91,70.0]
[1729601133958,15.052,166.09,165.91,70.0]
[1729601134260,6.0218,166.07,165.93,70.0]
[1729601134475,23.776884,166.06,165.93,70.0]
[1729601134654,20.0,166.07,165.93,70.0]
[1729601135065,6.48953659,166.15,165.95,70.0]
[1729601135273,0.1,166.13,165.95,27.99143521]
[1729601135457,6.021,166.09,165.95,27.99143521]
[1729601135658,15.1479,166.14,165.95,27.99143521]
[1729601135960,6.0205,166.1,165.95,97.99143521]
[1729601136368,6.0201,166.12,165.97,70.0]
[1729601136564,6.3896,166.15,165.97,70.0]
[1729601136768,6.0194,166.13,165.97,70.0]
[1729601136966,6.0199,166.12,165.97,70.0]
[1729601137661,20.0,166.11,165.97,70.0]
[1729601138465,6.0194,166.13,165.97,70.0]
[1729601138671,6.0197,166.12,165.99,70.0]
[1729601139196,0.6163768,166.16,166.02,70.0]
[1729601139479,0.6163768,166.16,166.04,70.0]
[1729601139663,0.6163768,166.16,166.04,97.99143521]
[1729601139859,0.6163768,166.16,166.07,27.99143521]
[1729601140083,0.6163768,166.16,166.1,27.99143521]
[1729601140264,0.6163768,166.16,166.11,76.0125]
[1729601140880,0.6163768,166.16,166.15,70.0]
[1729601141070,6.0136,166.29,166.15,70.0]
[1729601141269,15.6470768,166.33,166.15,70.0]
[1729601141270,0.6163768,166.33,166.18,70.0]
[1729601141471,6.0131,166.31,166.18,70.0]
[1729601142579,6.0143,166.27,166.15,70.0]
[1729601142763,6.014,166.28,166.15,70.0]
[1729601142959,6.0133,166.3,166.17,70.0]
[1729601143779,20.0,166.31,166.19,97.99143521]
[1729601144160,6.0128,166.32,166.19,97.99143521]
[1729601144570,0.6163768,166.33,166.19,97.99143521]
[1729601144773,6.6286768,166.33,166.19,97.99143521]
[1729601145082,0.6163768,166.33,166.19,27.99143521]
[1729601145277,6.0134,166.3,166.17,70.0]
[1729601145592,6.0132,166.3,166.16,97.99143521]
[1729601145882,6.0125,166.32,166.19,27.99143521]
[1729601146080,0.6163768,166.33,166.19,27.99143521]
[1729601146268,6.6284768,166.33,166.19,27.99143521]
[1729601146469,0.6163768,166.33,166.22,70.0]
[1729601146788,0.6163768,166.33,166.23,6.2627]
[1729601148574,0.6163768,166.33,166.23,76.2627]
[1729601148766,0.6163768,166.33,166.27,70.0]
[1729601149090,0.6163768,166.33,166.28,27.99143521]
[1729601149385,6.0082,166.44,166.31,27.99143521]
[1729601149590,0.6163768,166.49,166.37,27.99143521]
[1729601149890,6.0067,166.48,166.37,27.99143521]
[1729601150091,0.6163768,166.49,166.34,27.99143521]
[1729601150267,6.0074,166.46,166.34,27.99143521]
[1729601150586,6.007,166.48,166.34,27.99143521]
[1729601150887,0.6163768,166.49,166.37,70.0]
[1729601151195,6.6226768,166.49,166.36,15.0743]
[1729601151366,6.0079,166.45,166.32,34.31793521]
[1729601151581,6.007,166.47,166.32,34.31793521]
[1729601151795,6.0081,166.44,166.32,34.31793521]
[1729601151999,6.0077,166.46,166.32,34.31793521]
[1729601152297,0.6163768,166.49,166.37,70.0]
[1729601152703,0.6163768,166.49,166.36,27.99143521]
[1729601152704,0.6163768,166.49,166.39,70.0]
[1729601152999,0.6163768,166.49,166.39,97.99143521]
[1729601153204,0.6163768,166.49,166.39,27.99143521]
[1729601153410,0.6163768,166.49,166.41,70.0]
[1729601154199,0.6163768,166.49,166.39,97.99143521]
[1729601154698,0.6163768,166.49,166.42,97.99143521]
[1729601155286,0.6163768,166.49,166.42,27.99143521]
[1729601155612,0.6163768,166.49,166.39,70.0]
[1729601155809,0.6163768,166.49,166.41,70.0]
[1729601156103,0.6163768,166.49,166.41,97.99143521]
[1729601156409,0.6163768,166.49,166.41,27.99143521]
[1729601156607,0.6163768,166.49,166.46,70.0]
[1729601156909,0.6163768,166.49,166.47,27.99143521]
[1729601157202,0.6163768,166.49,166.48,70.0]
[1729601157408,8.18135598,166.68,166.48,70.0]
[1729601157409,8.08141939,166.68,166.48,70.0]
[1729601157592,6.0013,166.63,166.48,70.0]
[1729601157789,0.5069863,166.64,166.48,70.0]
[1729601157985,6.0018,166.62,166.48,70.0]
[1729601158611,23.776884,166.61,166.44,104.31203521]
[1729601158788,23.776884,166.59,166.44,104.31203521]
[1729601158983,23.776884,166.57,166.44,34.31203521]
[1729601159502,6.0049,166.53,166.44,34.31203521]
[1729601159686,0.19993659,166.63,166.44,6.3206]
[1729601159886,6.0043,166.55,166.44,6.3206]
[1729601161102,0.09993659,166.59,166.41,27.99143521]
[1729601161302,6.0054,166.52,166.39,70.0]
[1729601161889,43.776884,166.54,166.41,97.99143521]
[1729601162310,23.776884,166.54,166.41,97.99143521]
[1729601162718,6.0024,166.6,166.41,97.99143521]
[1729601162889,23.776884,166.56,166.44,27.99143521]
[1729601163091,6.0042,166.55,166.41,97.99143521]
[1729601163617,6.0042,166.55,166.42,20.0]
[1729601164410,23.776884,166.54,166.42,20.0]
[1729601164914,43.776884,166.55,166.43,70.0]
[1729601165612,6.004,166.56,166.44,20.0]
[1729601165799,23.776884,166.55,166.44,20.0]
[1729601165999,23.776884,166.55,166.41,97.99143521]
[1729601166304,29.781084,166.55,166.42,20.0]
[1729601167319,23.776884,166.51,166.38,34.08903521]
[1729601167522,23.776884,166.46,166.38,6.0976]
[1729601167818,23.776884,166.45,166.38,6.0976]
[1729601168017,23.776884,166.46,166.38,6.0976]
[1729601168818,23.776884,166.49,166.38,6.0976]
[1729601169815,29.784284,166.47,166.38,6.0976]
[1729601170114,29.784284,166.47,166.32,97.99143521]
[1729601170115,23.776884,166.44,166.33,6.2617]
[1729601170322,6.0086,166.43,166.33,6.2617]
[1729601170499,29.784984,166.44,166.33,6.2617]
[1729601170820,6.0089,166.42,166.33,6.2617]
[1729601171001,23.776884,166.42,166.33,6.2617]
[1729601171613,43.776884,166.46,166.33,76.2617]
[1729601171922,6.24581657,166.53,166.36,20.0]
[1729601172107,15.0122,166.54,166.36,20.0]
[1729601172292,6.0057,166.51,166.37,70.0]
[1729601173197,6.0054,166.52,166.38,27.99143521]
[1729601173393,20.0,166.51,166.38,27.99143521]
[1729601173817,6.007,166.48,166.35,97.99143521]
[1729601174005,6.007,166.48,166.35,70.0]
[1729601174203,6.007,166.48,166.34,43.776884]
[1729601174528,6.007,166.48,166.35,70.0]
[1729601174817,23.776884,166.52,166.39,20.0]
[1729601174995,29.782184,166.52,166.39,20.0]
[1729601176198,20.0,166.51,166.38,27.99143521]
[1729601176400,23.776884,166.47,166.33,76.2617]
[1729601176616,23.776884,166.41,166.33,6.2617]
[1729601177137,23.776884,166.42,166.33,6.2617]
[1729601177809,6.5824,166.47,166.33,6.2617]
[1729601178017,23.776884,166.47,166.35,97.99143521]
[1729601178318,23.776884,166.48,166.36,20.0]
[1729601178726,6.006,166.51,166.38,20.0]
[1729601179221,6.006,166.51,166.38,47.99143521]
[1729601179536,6.0046,166.54,166.4,20.0]
[1729601179841,6.1631,166.57,166.4,20.0]
[1729601179842,6.0049,166.53,166.4,20.0]
[1729601180043,6.0043,166.55,166.41,70.0]
[1729601180416,6.0053,166.52,166.39,20.0]
[1729601180835,6.2631,166.57,166.39,20.0]
[1729601181135,23.776884,166.48,166.35,27.99143521]
[1729601181320,23.776884,166.48,166.36,70.0]
[1729601181638,23.776884,166.49,166.36,70.0]
[1729601182722,23.776884,166.49,166.37,20.0]
[1729601183026,29.783384,166.49,166.37,20.0]
[1729601183238,29.783384,166.49,166.36,20.0]
[1729601183609,23.776884,166.47,166.33,6.2617]
[1729601183815,23.776884,166.45,166.34,70.0]
[1729601184040,23.776884,166.45,166.35,27.99143521]
[1729601185122,23.776884,166.45,166.36,20.0]
[1729601185738,23.776884,166.45,166.33,6.2617]
[1729601185943,23.776884,166.42,166.33,6.2617]
[1729601186441,23.776884,166.43,166.33,6.2617]
[1729601187025,16.6461,166.47,166.34,27.99143521]
[1729601187220,23.776884,166.46,166.34,27.99143521]
[1729601187421,23.776884,166.43,166.33,6.2617]
[1729601187629,29.785484,166.43,166.33,6.2617]
[1729601187844,16.6461,166.47,166.33,6.2617]
[1729601187845,23.776884,166.44,166.33,76.2617]
[1729601188045,23.776884,166.44,166.34,27.99143521]
[1729601188342,29.784284,166.46,166.34,27.99143521]
[1729601188531,29.784284,166.46,166.33,6.2617]
[1729601188532,20.0,166.45,166.33,6.2617]
[1729601189042,29.786584,166.4,166.29,6.1778]
[1729601189623,23.776884,166.4,166.29,6.1778]
[1729601189833,23.776884,166.37,166.29,6.1778]
[1729601190035,6.0113,166.36,166.24,34.41323521]
[1729601190349,23.776884,166.35,166.24,34.41323521]
[1729601191048,23.776884,166.33,166.24,6.4218]
[1729601191425,23.776884,166.34,166.24,6.4218]
[1729601191628,23.776884,166.32,166.24,6.4218]
[1729601191851,23.776884,166.32,166.22,15.6375]
[1729601192037,6.0132,166.31,166.2,6.6083]
[1729601192351,23.776884,166.28,166.2,6.6083]
[1729601192732,29.590784,166.28,166.19,0.1528252]
[1729601193243,6.0143,166.27,166.19,0.1528252]
[1729601193534,29.590884,166.28,166.19,0.1528252]
[1729601193725,20.0,166.32,166.19,0.1528252]
[1729601194035,26.0126,166.32,166.19,0.1528252]
[1729601194250,6.0141,166.28,166.19,0.1528252]
[1729601194544,20.0,166.34,166.19,0.1528252]
[1729601194724,6.0128,166.31,166.19,0.1528252]
[1729601195031,23.776884,166.3,166.19,0.1528252]
[1729601195929,20.0,166.34,166.21,27.99143521]
[1729601196131,6.0116,166.35,166.22,20.0]
[1729601197151,15.3721,166.36,166.21,27.99143521]
[1729601197352,23.776884,166.35,166.19,20.1528252]
[1729601197556,6.0128,166.32,166.19,0.1528252]
[1729601197728,23.776884,166.31,166.19,0.1528252]
[1729601198133,20.0,166.34,166.21,70.0]
[1729601198342,49.788484,166.35,166.22,20.0]
[1729601198859,43.776884,166.35,166.19,70.1528252]
[1729601199029,6.0128,166.32,166.19,0.1528252]
[1729601199228,23.776884,166.31,166.19,0.1528252]
[1729601199450,23.776884,166.29,166.19,0.1528252]
[1729601199654,29.790484,166.29,166.19,0.1528252]
[1729601199948,23.776884,166.29,166.19,0.1528252]
[1729601200256,23.776884,166.3,166.19,0.1528252]
[1729601201659,43.776884,166.31,166.19,0.1528252]
[1729601202048,23.776884,166.31,166.19,70.1528252]
[1729601202353,23.776884,166.32,166.2,20.0]
[1729601202747,23.776884,166.3,166.19,0.1528252]
[1729601203370,23.776884,166.29,166.19,0.1528252]
[1729601206159,23.776884,166.24,166.19,0.1528252]
[1729601206338,23.776884,166.21,166.19,0.1528252]
[1729601206545,49.793684,166.2,166.19,0.1528252]
[1729601207258,23.776884,166.2,166.19,0.1528252]
[1729601207647,23.776884,166.2,166.0,70.0]
[1729601207648,23.776884,166.14,166.0,70.0]
[1729601207947,6.0648,166.2,166.0,70.0]
[1729601207948,23.776884,166.11,166.0,27.99143521]
[1729601208470,23.776884,166.12,166.0,27.99143521]
[1729601208650,15.3489,166.15,166.03,97.99143521]
[1729601208848,23.776884,166.16,166.03,97.99143521]
[1729601209158,23.776884,166.16,166.06,27.99143521]
[1729601209367,23.776884,166.18,166.06,27.99143521]
[1729601209663,23.776884,166.18,166.05,70.0]
[1729601209881,1.85704554,166.3,166.17,70.0]
[1729601210056,6.0648,166.35,166.2,27.99143521]
[1729601210256,12.0763,166.35,166.21,70.0]
[1729601210458,6.0648,166.35,166.23,27.99143521]
[1729601210856,6.0648,166.35,166.22,6.3894]
[1729601210857,6.0121,166.33,166.22,6.3894]
[1729601211075,6.0117,166.34,166.22,6.3894]
[1729601212357,23.776884,166.33,166.22,6.3894]
[1729601213354,6.0125,166.32,166.22,6.3894]
[1729601213557,6.0648,166.35,166.17,6.5668]
[1729601213558,23.776884,166.29,166.17,6.5668]
[1729601213864,23.776884,166.3,166.17,6.5668]
[1729601214060,23.776884,166.3,166.18,70.0]
[1729601214466,23.776884,166.33,166.2,70.0]
[1729601214774,23.776884,166.33,166.21,27.99143521]
[1729601216775,15.9755,166.36,166.21,27.99143521]
[1729601216776,15.9755,166.36,166.24,97.99143521]
[1729601216963,6.0103,166.39,166.25,20.0]
[1729601217274,12.5042,166.4,166.25,20.0]
[1729601217451,6.0103,166.39,166.25,20.0]
[1729601217654,6.0103,166.38,166.25,20.0]
[1729601217968,6.0099,166.39,166.25,20.0]
[1729601218175,6.4946,166.4,166.27,70.0]